fUSD/lending_fUSD_20241121
["ID","MTS","AMOUNT","RATE_DAILY","PERIOD"]
[342890811,1732194669562,-500.0,0.00041917,18]
[342890812,1732194669574,-935.26,0.00041917,18]
[342890813,1732194669587,-614.9,0.00041917,18]
[342890814,1732194669600,-500.0,0.00041917,18]
[342890815,1732194669614,-500.0,0.00041917,18]
[342890816,1732194669627,-746.76,0.00041917,18]
[342890817,1732194669646,-500.0,0.00041917,18]
[342890818,1732194669658,-156.28335774,0.00041917,18]
[342890819,1732194669670,-1252.1,0.00041917,18]
[342890820,1732194669681,-500.0,0.00041917,18]
[342890821,1732194669693,-579.63,0.00041917,18]
[342890822,1732194669708,-530.79,0.00041917,18]
[342890823,1732194669720,-1268.23,0.00041917,18]
[342890824,1732194669734,-500.0,0.00041917,18]
[342890825,1732194669748,-500.0,0.00041917,18]
[342890826,1732194669761,-1111.74,0.00041917,18]
[342890827,1732194669775,-1796.01,0.00041917,18]
[342890828,1732194669789,-500.0,0.00041917,18]
[342890829,1732194669801,-749.73,0.00041917,18]
[342890830,1732194669815,-500.0,0.00041917,18]
[342890831,1732194669828,-910.85,0.00041917,18]
[342890832,1732194669840,-500.0,0.00041917,18]
[342890833,1732194669854,-833.17,0.00041917,18]
[342890834,1732194669866,-1119.76,0.00041917,18]
[342890835,1732194669880,-834.39,0.00041917,18]
[342890836,1732194669902,-500.0,0.00041917,18]
[342890837,1732194669916,-1408.09,0.00041917,18]
[342890838,1732194669930,-1181.61,0.00041917,18]
[342890839,1732194669941,-500.0,0.00041917,18]
[342890840,1732194669953,-500.0,0.00041917,18]
[342890841,1732194669966,-1339.59,0.00041917,18]
[342890842,1732194669981,-611.35858539,0.00041917,18]
[342890843,1732194669992,-1632.1,0.00041917,18]
[342890844,1732194670002,-1303.89,0.00041917,18]
[342890845,1732194670013,-500.0,0.00041917,18]
[342890846,1732194670025,-648.48,0.00041917,18]
[342890847,1732194670039,-811.5,0.00041917,18]
[342890848,1732194670061,-500.0,0.00041917,18]
[342890849,1732194670077,-1333.26,0.00041917,18]
[342890850,1732194670088,-733.69,0.00041917,18]
[342890851,1732194670100,-641.2,0.00041917,18]
[342890852,1732194670111,-500.0,0.00041917,18]
[342890853,1732194670123,-500.0,0.00041917,18]
[342890854,1732194670135,-500.0,0.00041917,18]
[342890855,1732194670150,-1373.8,0.00041917,18]
[342890856,1732194670174,-500.0,0.00041917,18]
[342890857,1732194670187,-1625.55,0.00041917,18]
[342890858,1732194670201,-1057.1,0.00041917,18]
[342890859,1732194670214,-500.0,0.00041917,18]
[342890860,1732194670227,-1350.73,0.00041917,18]
[342890861,1732194670240,-1687.47,0.00041917,18]
[342890862,1732194670252,-500.0,0.00041917,18]
[342890863,1732194670265,-591.33,0.00041917,18]
[342890864,1732194670278,-1201.74,0.00041917,18]
[342890865,1732194670292,-500.0,0.00041917,18]
[342890866,1732194670304,-1016.57,0.00041917,18]
[342890867,1732194670317,-626.08,0.00041917,120]
[342890868,1732194670331,-500.0,0.00041917,18]
[342890869,1732194670343,-826.82,0.00041917,18]
[342890870,1732194670355,-500.0,0.00041917,18]
[342890871,1732194670368,-1376.07,0.00041917,18]
[342890872,1732194670380,-500.0,0.00041917,18]
[342890873,1732194670397,-2069.65,0.00041917,18]
[342890874,1732194670410,-671.29,0.00041917,18]
[342890875,1732194670425,-532.3325491,0.00041917,18]
[342890876,1732194670438,-773.7,0.00041917,18]
[342890877,1732194670450,-500.0,0.00041917,18]
[342890878,1732194670464,-609.6,0.00041917,18]
[342890879,1732194670476,-537.0,0.00041917,18]
[342890880,1732194670488,-500.0,0.00041917,18]
[342890881,1732194670501,-500.0,0.00041917,18]
[342890882,1732194670513,-847.49,0.00041917,18]
[342890883,1732194670526,-960.97,0.00041917,18]
[342890884,1732194670539,-500.0,0.00041917,18]
[342890885,1732194670551,-695.23089702,0.00041917,18]
[342890886,1732194670574,-47.00910298,0.00041917,18]
[342890887,1732194670586,-1405.55894061,0.00041917,18]
[342890888,1732194671041,-500.0,0.00041095,18]
[342890889,1732194671124,-500.0,0.00041369,18]
[342890890,1732194671136,-500.0,0.00041643,18]
[342890891,1732194671150,-578.70105939,0.00041917,18]
[342890892,1732194671162,-1389.96,0.00041917,18]
[342890893,1732194671173,-1017.44,0.00041917,18]
[342890894,1732194671184,-701.56,0.00041917,18]
[342890895,1732194671195,-634.95,0.00041917,18]
[342890896,1732194671206,-984.38894227,0.00041917,18]
[342890897,1732194671843,-50.03105773,0.00041917,18]
[342890898,1732194671855,-500.0,0.00041917,18]
[342890899,1732194671866,-288.65787408,0.00041917,18]
[342890900,1732194671880,-211.34212592,0.00041917,18]
[342890901,1732194671895,-284.86470769,0.00041917,18]
[342890902,1732194671909,-273.75529231,0.00041917,18]
[342890903,1732194671922,-664.48,0.00041917,18]
[342890904,1732194671933,-1171.42,0.00041917,18]
[342890905,1732194671944,-1308.28487769,0.00041917,18]
[342890906,1732194671996,-316.09512231,0.00041917,18]
[342890907,1732194672008,-500.0,0.00041917,18]
[342890908,1732194672019,-626.82,0.00041917,18]
[342890909,1732194672030,-500.0,0.00041917,18]
[342890910,1732194672042,-500.0,0.00041917,18]
[342890911,1732194672053,-500.0,0.00041917,18]
[342890912,1732194672065,-500.0,0.00041917,18]
[342890913,1732194672076,-500.0,0.00041917,18]
[342890914,1732194672088,-500.0,0.00041917,18]
[342890915,1732194672100,-589.11,0.00041917,18]
[342890916,1732194672111,-591.37,0.00041917,18]
[342890917,1732194672122,-2237.19,0.00041917,18]
[342890918,1732194672134,-500.0,0.00041917,18]
[342890919,1732194672148,-204.73547606,0.00041917,18]
[342890920,1732194673857,-5651.02,0.00041095,18]
[342890921,1732194673867,-500.0,0.00041095,18]
[342890922,1732194673878,-5651.02,0.00041369,18]
[342890923,1732194673888,-4238.1094,0.00041643,18]
[342890924,1732194673956,-21.51247429,0.00041643,18]
[342890925,1732194673969,-1391.39812571,0.00041643,18]
[342890926,1732194673979,-180.91644052,0.00041817,2]
[342890927,1732194673989,-1071.99452394,0.00041917,18]
[342890928,1732194673999,-500.0,0.00041917,18]
[342890929,1732194674010,-500.0,0.00041917,18]
[342890930,1732194674019,-500.0,0.00041917,18]
[342890931,1732194674031,-1143.78,0.00041917,18]
[342890932,1732194674043,-500.0,0.00041917,18]
[342890933,1732194674053,-500.0,0.00041917,18]
[342890934,1732194674063,-1520.33,0.00041917,18]
[342890935,1732194674073,-500.0,0.00041917,18]
[342890936,1732194674083,-500.0,0.00041917,18]
[342890937,1732194674093,-500.0,0.00041917,18]
[342890938,1732194674103,-933.41,0.00041917,18]
[342890939,1732194674112,-805.17,0.00041917,18]
[342890940,1732194674122,-734.92,0.00041917,18]
[342890941,1732194674131,-500.0,0.00041917,18]
[342890942,1732194674142,-723.21,0.00041917,18]
[342890943,1732194674155,-500.0,0.00041917,18]
[342890944,1732194674165,-1099.43,0.00041917,18]
[342890945,1732194674175,-500.0,0.00041917,18]
[342890946,1732194674185,-754.28,0.00041917,18]
[342890947,1732194674194,-793.43,0.00041917,18]
[342890948,1732194674204,-851.38,0.00041917,18]
[342890949,1732194674214,-500.0,0.00041917,18]
[342890950,1732194674223,-500.0,0.00041917,18]
[342890951,1732194674233,-500.0,0.00041917,18]
[342890952,1732194674242,-507.50826437,0.00041917,18]
[342890953,1732194674251,-500.0,0.00041917,18]
[342890954,1732194674261,-1500.37,0.00041917,18]
[342890955,1732194674271,-550.53,0.00041917,18]
[342890956,1732194674280,-1132.91,0.00041917,18]
[342890957,1732194674290,-669.38,0.00041917,18]
[342890958,1732194674299,-515.06,0.00041917,18]
[342890959,1732194674308,-500.0,0.00041917,18]
[342890960,1732194674318,-565.21,0.00041917,18]
[342890961,1732194674328,-841.68,0.00041917,18]
[342890962,1732194674338,-911.11,0.00041917,18]
[342890963,1732194674347,-934.96,0.00041917,18]
[342890964,1732194674358,-500.0,0.00041917,18]
[342890965,1732194674367,-500.0,0.00041917,18]
[342890966,1732194674377,-500.0,0.00041917,18]
[342890967,1732194674387,-500.0,0.00041917,18]
[342890968,1732194674403,-2238.4,0.00041917,18]
[342890969,1732194674414,-232.15327375,0.00041917,18]
[342890970,1732194674423,-500.0,0.00041917,18]
[342890971,1732194674436,-500.0,0.00041917,18]
[342890972,1732194674446,-2156.55,0.00041917,18]
[342890973,1732194674457,-500.0,0.00041917,18]
[342890974,1732194674468,-500.0,0.00041917,18]
[342890975,1732194674478,-2089.86,0.00041917,18]
[342890976,1732194674488,-500.0,0.00041917,18]
[342890977,1732194674498,-500.0,0.00041917,18]
[342890978,1732194674508,-500.0,0.00041917,18]
[342890979,1732194674517,-1818.8,0.00041917,18]
[342890980,1732194674526,-639.80254943,0.00041917,18]
[342890981,1732194674536,-522.66,0.00041917,18]
[342890982,1732194674545,-642.73,0.00041917,18]
[342890983,1732194674555,-544.07,0.00041917,18]
[342890984,1732194674564,-804.52,0.00041917,18]
[342890985,1732194674574,-151.92872266,0.00041917,18]
[342890986,1732194674584,-613.56,0.00041917,18]
[342890987,1732194674593,-151.0,0.00041917,14]
[342890988,1732194674604,-500.0,0.00041917,18]
[342890989,1732194674614,-500.0,0.00041917,18]
[342890990,1732194674623,-500.0,0.00041917,18]
[342890991,1732194674633,-500.0,0.00041917,18]
[342890992,1732194674646,-546.32230713,0.00041917,18]
[342890993,1732194674655,-1023.4,0.00041917,18]
[342890994,1732194674665,-500.0,0.00041917,18]
[342890995,1732194674675,-500.0,0.00041917,18]
[342890996,1732194674684,-500.0,0.00041917,18]
[342890997,1732194674694,-500.0,0.00041917,18]
[342890998,1732194674703,-500.0,0.00041917,18]
[342890999,1732194674712,-500.0,0.00041917,18]
[342891000,1732194674722,-500.0,0.00041917,18]
[342891001,1732194674731,-500.0,0.00041917,18]
[342891002,1732194674741,-500.0,0.00041917,18]
[342891003,1732194674751,-663.19,0.00041917,18]
[342891004,1732194674760,-508.18,0.00041917,18]
[342891005,1732194674770,-500.0,0.00041917,18]
[342891006,1732194674780,-546.76,0.00041917,18]
[342891007,1732194674790,-500.0,0.00041917,18]
[342891008,1732194674800,-500.0,0.00041917,18]
[342891009,1732194674809,-1104.43,0.00041917,18]
[342891010,1732194674819,-500.0,0.00041917,18]
[342891011,1732194674829,-500.0,0.00041917,18]
[342891012,1732194674839,-824.95,0.00041917,18]
[342891013,1732194674848,-500.0,0.00041917,18]
[342891014,1732194674858,-1063.93,0.00041917,18]
[342891015,1732194674867,-730.13,0.00041917,18]
[342891016,1732194674877,-500.0,0.00041917,18]
[342891017,1732194674887,-151.0,0.00041917,14]
[342891018,1732194674900,-500.0,0.00041917,18]
[342891019,1732194674909,-500.0,0.00041917,18]
[342891020,1732194674919,-500.0,0.00041917,18]
[342891021,1732194674929,-500.0,0.00041917,18]
[342891022,1732194674939,-500.0,0.00041917,18]
[342891023,1732194674948,-519.28,0.00041917,18]
[342891024,1732194674958,-161.54093309,0.00041917,18]
[342891025,1732194674977,-354.12906691,0.00041917,18]
[342891026,1732194674988,-553.44,0.00041917,18]
[342891027,1732194674997,-527.19,0.00041917,18]
[342891028,1732194675008,-2311.6,0.00041917,18]
[342891029,1732194675017,-500.0,0.00041917,18]
[342891030,1732194675027,-818.94,0.00041917,18]
[342891031,1732194675037,-723.23,0.00041917,18]
[342891032,1732194675047,-500.0,0.00041917,18]
[342891033,1732194675057,-500.0,0.00041917,18]
[342891034,1732194675067,-500.0,0.00041917,18]
[342891035,1732194675077,-1019.84,0.00041917,18]
[342891036,1732194675087,-547.98,0.00041917,18]
[342891037,1732194675096,-1689.38,0.00041917,18]
[342891038,1732194675106,-2590.26,0.00041917,18]
[342891039,1732194675116,-500.0,0.00041917,18]
[342891040,1732194675126,-944.49,0.00041917,18]
[342891041,1732194675135,-500.0,0.00041917,18]
[342891042,1732194675150,-517.93,0.00041917,18]
[342891043,1732194675160,-500.0,0.00041917,18]
[342891044,1732194675170,-500.0,0.00041917,18]
[342891045,1732194675179,-500.0,0.00041917,18]
[342891046,1732194675189,-713.1,0.00041917,18]
[342891047,1732194675199,-224.03085749,0.00041917,18]
[342891048,1732194675237,-578.89914251,0.00041917,18]
[342891049,1732194675247,-652.82,0.00041917,18]
[342891050,1732194675257,-195.90541197,0.00041917,18]
[342891051,1732194675266,-1840.53,0.00041917,18]
[342891052,1732194675276,-500.0,0.00041917,18]
[342891053,1732194675285,-1216.8,0.00041917,18]
[342891054,1732194675295,-215.13926121,0.00041917,18]
[342891055,1732194675305,-615.5,0.00041917,18]
[342891056,1732194675316,-548.89,0.00041917,18]
[342891057,1732194675327,-500.0,0.00041917,18]
[342891058,1732194675337,-500.0,0.00041917,18]
[342891059,1732194675347,-1394.52,0.00041917,18]
[342891060,1732194675356,-151.0,0.00041917,14]
[342891061,1732194675367,-211.0,0.00041917,14]
[342891062,1732194675377,-955.59,0.00041917,18]
[342891063,1732194675388,-289.940078,0.00041917,14]
[342891064,1732194675406,-1291.74,0.00041917,18]
[342891065,1732194675419,-521.77,0.00041917,18]
[342891066,1732194675430,-631.87,0.00041917,18]
[342891067,1732194675440,-1725.65,0.00041917,18]
[342891068,1732194675450,-500.0,0.00041917,18]
[342891069,1732194675463,-154.893578,0.00041917,14]
[342891070,1732194675473,-500.0,0.00041917,18]
[342891071,1732194675483,-500.0,0.00041917,18]
[342891072,1732194675493,-1126.07,0.00041917,18]
[342891073,1732194675504,-500.0,0.00041917,18]
[342891074,1732194675514,-500.0,0.00041917,18]
[342891075,1732194675524,-500.0,0.00041917,18]
[342891076,1732194675533,-500.0,0.00041917,18]
[342891077,1732194675543,-609.14,0.00041917,18]
[342891078,1732194675553,-809.48,0.00041917,18]
[342891079,1732194675563,-539.84,0.00041917,18]
[342891080,1732194675572,-557.25,0.00041917,18]
[342891081,1732194675582,-815.62,0.00041917,18]
[342891082,1732194675593,-583.24,0.00041917,18]
[342891083,1732194675602,-500.0,0.00041917,18]
[342891084,1732194675611,-1214.92,0.00041917,18]
[342891085,1732194675621,-569.51,0.00041917,18]
[342891086,1732194675631,-500.0,0.00041917,18]
[342891087,1732194675640,-500.0,0.00041917,18]
[342891088,1732194675655,-200.0,0.00041917,7]
[342891089,1732194675665,-500.0,0.00041917,18]
[342891090,1732194675674,-887.95,0.00041917,18]
[342891091,1732194675684,-500.0,0.00041917,18]
[342891092,1732194675694,-500.0,0.00041917,18]
[342891093,1732194675704,-500.0,0.00041917,18]
[342891094,1732194675713,-680.98,0.00041917,18]
[342891095,1732194675723,-500.0,0.00041917,18]
[342891096,1732194675733,-3514.73,0.00041917,18]
[342891097,1732194675743,-500.0,0.00041917,18]
[342891098,1732194675753,-891.06,0.00041917,18]
[342891099,1732194675763,-1638.87499736,0.00041917,18]
[342891100,1732194675776,-13.26500264,0.00041917,18]
[342891101,1732194675786,-326.73499736,0.00041917,18]
[342891102,1732194676281,-500.0,0.00041369,18]
[342891103,1732194676291,-173.26500264,0.00041917,18]
[342891104,1732194676301,-565.95,0.00041917,18]
[342891105,1732194676311,-500.0,0.00041917,18]
[342891106,1732194676321,-523.5,0.00041917,18]
[342891107,1732194676330,-500.0,0.00041917,18]
[342891108,1732194676341,-500.0,0.00041917,18]
[342891109,1732194676350,-500.0,0.00041917,18]
[342891110,1732194676359,-1549.03,0.00041917,18]
[342891111,1732194676368,-677.54,0.00041917,18]
[342891112,1732194676377,-736.8,0.00041917,18]
[342891113,1732194676387,-160.76588991,0.00041917,18]
[342891114,1732194676406,-706.29411009,0.00041917,18]
[342891115,1732194676418,-822.75,0.00041917,18]
[342891116,1732194676427,-500.0,0.00041917,18]
[342891117,1732194676440,-500.0,0.00041917,18]
[342891118,1732194676450,-500.0,0.00041917,18]
[342891119,1732194676461,-575.48,0.00041917,18]
[342891120,1732194676470,-302.65218098,0.00041917,18]
[342891121,1732194676483,-1704.20781902,0.00041917,18]
[342891122,1732194676492,-500.0,0.00041917,18]
[342891123,1732194676502,-1583.84338929,0.00041917,18]
[342891124,1732194676517,-9052.73661071,0.00041917,18]
[342891125,1732194676527,-591.85,0.00041917,18]
[342891126,1732194676536,-500.0,0.00041917,18]
[342891127,1732194676546,-350.4405892,0.00041917,18]
[342891128,1732194676558,-149.5594108,0.00041917,18]
[342891129,1732194676567,-912.59,0.00041917,18]
[342891130,1732194676578,-500.0,0.00041917,18]
[342891131,1732194676587,-500.0,0.00041917,18]
[342891132,1732194676597,-500.0,0.00041917,18]
[342891133,1732194676606,-191.99169611,0.00041917,18]
[342891134,1732194676618,-379.0173541,0.00041917,18]
[342891135,1732194676633,-288.03695411,0.00041917,18]
[342891136,1732194676648,-270.85399568,0.00041917,18]
[342891137,1732194676657,-879.34,0.00041917,18]
[342891138,1732194676667,-500.0,0.00041917,18]
[342891139,1732194676678,-500.0,0.00041917,18]
[342891140,1732194676687,-153.71600445,0.00041917,18]
[342891141,1732194676700,-346.28399555,0.00041917,18]
[342891142,1732194676709,-500.0,0.00041917,18]
[342891143,1732194676719,-500.0,0.00041917,18]
[342891144,1732194676729,-1423.11,0.00041917,18]
[342891145,1732194676739,-1180.37,0.00041917,18]
[342891146,1732194676749,-969.53,0.00041917,18]
[342891147,1732194676758,-74.59566226,0.00041917,18]
[342891148,1732194676774,-1729.10433774,0.00041917,18]
[342891149,1732194676784,-1280.51,0.00041917,18]
[342891150,1732194676793,-500.0,0.00041917,18]
[342891151,1732194676802,-609.538105,0.00041917,18]
[342891152,1732194676825,-394.751895,0.00041917,18]
[342891153,1732194676834,-1004.5,0.00041917,18]
[342891154,1732194676844,-887.04,0.00041917,18]
[342891155,1732194676853,-500.0,0.00041917,18]
[342891156,1732194676863,-500.0,0.00041917,18]
[342891157,1732194676873,-2250.76,0.00041917,18]
[342891158,1732194676882,-500.0,0.00041917,18]
[342891159,1732194676897,-500.0,0.00041917,18]
[342891160,1732194676906,-855.84,0.00041917,18]
[342891161,1732194676915,-3000.0,0.00041917,42]
[342891162,1732194676925,-500.0,0.00041917,18]
[342891163,1732194676934,-500.0,0.00041917,18]
[342891164,1732194676945,-854.25,0.00041917,18]
[342891165,1732194676954,-500.0,0.00041917,18]
[342891166,1732194676964,-1315.84,0.00041917,18]
[342891167,1732194676974,-804.45,0.00041917,18]
[342891168,1732194676984,-956.47,0.00041917,18]
[342891169,1732194676994,-1732.71,0.00041917,18]
[342891170,1732194677003,-1103.91,0.00041917,18]
[342891171,1732194677013,-1237.38,0.00041917,18]
[342891172,1732194677023,-1087.6,0.00041917,18]
[342891173,1732194677032,-500.0,0.00041917,18]
[342891174,1732194677042,-500.0,0.00041917,18]
[342891175,1732194677051,-500.0,0.00041917,18]
[342891176,1732194677061,-500.0,0.00041917,18]
[342891177,1732194677070,-500.0,0.00041917,18]
[342891178,1732194677080,-997.02,0.00041917,18]
[342891179,1732194677090,-30258.65,0.00041917,18]
[342891180,1732194677099,-500.0,0.00041917,18]
[342891181,1732194677108,-500.0,0.00041917,18]
[342891182,1732194677117,-882.36,0.00041917,18]
[342891183,1732194677127,-500.0,0.00041917,18]
[342891184,1732194677136,-2042.76,0.00041917,18]
[342891185,1732194677149,-6949.53,0.00041917,18]
[342891186,1732194677158,-2098.95,0.00041917,18]
[342891187,1732194677168,-1092.83,0.00041917,18]
[342891188,1732194677178,-500.0,0.00041917,18]
[342891189,1732194677187,-741.2,0.00041917,18]
[342891190,1732194677197,-500.0,0.00041917,18]
[342891191,1732194677206,-767.93,0.00041917,18]
[342891192,1732194677216,-151.0,0.00041917,7]
[342891193,1732194677226,-500.0,0.00041917,18]
[342891194,1732194677235,-661.75,0.00041917,18]
[342891195,1732194677244,-1429.89,0.00041917,18]
[342891196,1732194677254,-1069.71,0.00041917,18]
[342891197,1732194677263,-39038.48,0.00041917,5]
[342891198,1732194677272,-1850.52,0.00041917,18]
[342891199,1732194677282,-921.74,0.00041917,18]
[342891200,1732194677291,-500.0,0.00041917,18]
[342891201,1732194677301,-3979.51,0.00041917,18]
[342891202,1732194677310,-1541.01,0.00041917,18]
[342891203,1732194677320,-500.0,0.00041917,18]
[342891204,1732194677330,-611.82,0.00041917,18]
[342891205,1732194677339,-500.0,0.00041917,18]
[342891206,1732194677348,-500.0,0.00041917,18]
[342891207,1732194677357,-151.0,0.00041917,14]
[342891208,1732194677367,-500.0,0.00041917,18]
[342891209,1732194677377,-719.24,0.00041917,18]
[342891210,1732194677386,-500.0,0.00041917,18]
[342891211,1732194677399,-717.99,0.00041917,18]
[342891212,1732194677409,-1387.72,0.00041917,18]
[342891213,1732194677420,-649.06,0.00041917,18]
[342891214,1732194677430,-500.0,0.00041917,18]
[342891215,1732194677440,-2247.45,0.00041917,18]
[342891216,1732194677449,-2027.6,0.00041917,18]
[342891217,1732194677459,-500.0,0.00041917,18]
[342891218,1732194677469,-937.83,0.00041917,18]
[342891219,1732194677479,-2953.67,0.00041917,18]
[342891220,1732194677488,-500.0,0.00041917,18]
[342891221,1732194677498,-500.0,0.00041917,18]
[342891222,1732194677508,-541.93,0.00041917,18]
[342891223,1732194677519,-689.94,0.00041917,18]
[342891224,1732194677528,-500.0,0.00041917,18]
[342891225,1732194677538,-500.0,0.00041917,18]
[342891226,1732194677547,-548.65,0.00041917,18]
[342891227,1732194677557,-1513.8,0.00041917,18]
[342891228,1732194677567,-151.0,0.00041917,14]
[342891229,1732194677579,-2147.97,0.00041917,18]
[342891230,1732194677589,-500.0,0.00041917,18]
[342891231,1732194677599,-828.48,0.00041917,18]
[342891232,1732194677608,-500.0,0.00041917,18]
[342891233,1732194677617,-1031.29,0.00041917,18]
[342891234,1732194677627,-500.0,0.00041917,18]
[342891235,1732194677636,-500.0,0.00041917,18]
[342891236,1732194677650,-711.15,0.00041917,18]
[342891237,1732194677660,-934.86,0.00041917,18]
[342891238,1732194677669,-829.16,0.00041917,18]
[342891239,1732194677678,-500.0,0.00041917,18]
[342891240,1732194677688,-500.0,0.00041917,18]
[342891241,1732194677697,-1014.7,0.00041917,18]
[342891242,1732194677707,-3813.71,0.00041917,18]
[342891243,1732194677717,-3113.46,0.00041917,18]
[342891244,1732194677726,-5231.7,0.00041917,18]
[342891245,1732194677735,-2460.96,0.00041917,18]
[342891246,1732194677745,-690.51,0.00041917,18]
[342891247,1732194677754,-668.72,0.00041917,18]
[342891248,1732194677764,-650.55,0.00041917,18]
[342891249,1732194677773,-1646.45,0.00041917,18]
[342891250,1732194677782,-500.0,0.00041917,18]
[342891251,1732194677792,-500.0,0.00041917,18]
[342891252,1732194677801,-500.0,0.00041917,18]
[342891253,1732194677810,-871.98,0.00041917,18]
[342891254,1732194677819,-1039.59,0.00041917,18]
[342891255,1732194677828,-987.99,0.00041917,18]
[342891256,1732194677838,-4052.73,0.00041917,18]
[342891257,1732194677847,-500.0,0.00041917,18]
[342891258,1732194677856,-860.23,0.00041917,18]
[342891259,1732194677866,-500.0,0.00041917,18]
[342891260,1732194677875,-500.0,0.00041917,18]
[342891261,1732194677885,-500.0,0.00041917,18]
[342891262,1732194677897,-1262.53,0.00041917,18]
[342891263,1732194677906,-500.0,0.00041917,18]
[342891264,1732194677915,-767.34,0.00041917,18]
[342891265,1732194677924,-500.0,0.00041917,18]
[342891266,1732194677934,-954.48,0.00041917,18]
[342891267,1732194677945,-724.62,0.00041917,18]
[342891268,1732194677954,-504.07,0.00041917,18]
[342891269,1732194677963,-500.0,0.00041917,18]
[342891270,1732194677972,-675.87,0.00041917,18]
[342891271,1732194677981,-2016.77,0.00041917,18]
[342891272,1732194677990,-500.0,0.00041917,18]
[342891273,1732194678000,-596.76,0.00041917,18]
[342891274,1732194678010,-500.0,0.00041917,18]
[342891275,1732194678019,-615.54,0.00041917,18]
[342891276,1732194678029,-500.0,0.00041917,18]
[342891277,1732194678039,-685.07,0.00041917,18]
[342891278,1732194678048,-500.0,0.00041917,18]
[342891279,1732194678058,-741.68,0.00041917,7]
[342891280,1732194678068,-1394.02,0.00041917,18]
[342891281,1732194678078,-750.77,0.00041917,18]
[342891282,1732194678087,-1815.86,0.00041917,18]
[342891283,1732194678097,-500.0,0.00041917,18]
[342891284,1732194678107,-500.0,0.00041917,18]
[342891285,1732194678116,-500.0,0.00041917,18]
[342891286,1732194678126,-500.0,0.00041917,18]
[342891287,1732194678135,-500.0,0.00041917,18]
[342891288,1732194678147,-817.86,0.00041917,18]
[342891289,1732194678156,-1258.17,0.00041917,18]
[342891290,1732194678166,-1500.0,0.00041917,120]
[342891291,1732194678175,-21921.81,0.00041917,18]
[342891292,1732194678185,-610.28,0.00041917,18]
[342891293,1732194678195,-672.11,0.00041917,18]
[342891294,1732194678205,-500.0,0.00041917,18]
[342891295,1732194678214,-500.0,0.00041917,18]
[342891296,1732194678224,-2239.49,0.00041917,18]
[342891297,1732194678233,-993.04,0.00041917,18]
[342891298,1732194678242,-4988.71,0.00041917,18]
[342891299,1732194678252,-597.59,0.00041917,18]
[342891300,1732194678261,-500.0,0.00041917,18]
[342891301,1732194678270,-1765.4,0.00041917,18]
[342891302,1732194678281,-1619.06,0.00041917,18]
[342891303,1732194678291,-500.0,0.00041917,18]
[342891304,1732194678301,-862.66,0.00041917,18]
[342891305,1732194678310,-966.97,0.00041917,18]
[342891306,1732194678320,-500.0,0.00041917,18]
[342891307,1732194678330,-1798.77,0.00041917,18]
[342891308,1732194678339,-500.0,0.00041917,18]
[342891309,1732194678350,-500.0,0.00041917,18]
[342891310,1732194678360,-870.92,0.00041917,18]